bitfinex/quotes_SOLUSD_20220211
["timestamp","ask_amount","ask_price","bid_price","bid_amount"]
[1644619934489,15.6801,95.78,95.709,5.22]
[1644619934887,24.12444704,95.779,95.67,0.024]
[1644619935087,24.12444704,95.779,95.69,0.024]
[1644619935387,18.90244704,95.778,95.663,2.94140581]
[1644619935586,29.7984,95.777,95.662,2.94140581]
[1644619935787,49.82830815,95.777,95.67,0.024]
[1644619935988,15.6854,95.75,95.65,0.024]
[1644619936192,23.5154,95.75,95.65,0.024]
[1644619936393,20.02990815,95.749,95.65,0.024]
[1644619936588,22.7026,95.748,95.64,0.024]
[1644619936791,22.6715,95.747,95.627,8.02974396]
[1644619936989,42.70140815,95.747,95.64,0.024]
[1644619937194,5.224,95.746,95.63,0.024]
[1644619937387,25.25390815,95.746,95.64,0.024]
[1644619937587,20.02990815,95.745,95.63,0.024]
[1644619937788,15.6893,95.72,95.63,0.024]
[1644619938188,5.226,95.719,95.63,0.024]
[1644619938591,5.226,95.728,95.61,0.024]
[1644619938792,7.60966791,95.718,95.62,0.024]
[1644619938989,2.38366791,95.718,95.61,0.024]
[1644619939287,5.226,95.717,95.61,0.024]
[1644619939790,15.6913,95.7,95.61,0.024]
[1644619940390,15.6913,95.7,95.611,5.227]
[1644619941590,17.64624024,95.699,95.611,5.227]
[1644619941789,15.6927,95.68,95.61,0.024]
[1644619942189,15.6927,95.68,95.601,5.04861248]
[1644619942389,15.6927,95.68,95.594,2.94140581]
[1644619942390,15.6927,95.68,95.594,7.99001829]
[1644619942592,15.6927,95.68,95.595,5.04861248]
[1644619942791,15.6927,95.68,95.594,5.04861248]
[1644619942990,15.6927,95.68,95.594,10.27661248]
[1644619943188,15.6927,95.68,95.594,13.21801829]
[1644619943389,15.6927,95.68,95.595,7.99001829]
[1644619943592,33.43884024,95.718,95.597,2.94140581]
[1644619943790,33.43884024,95.718,95.603,2.94140581]
[1644619943995,15.7926,95.718,95.61,0.024]
[1644619944196,5.226,95.714,95.61,0.024]
[1644619944592,2.38366791,95.713,95.61,0.024]
[1644619944793,5.226,95.712,95.61,0.024]
[1644619945094,2.38366791,95.711,95.61,0.024]
[1644619945495,5.226,95.71,95.61,0.024]
[1644619945694,15.6896,95.69,95.61,0.024]
[1644619946500,15.6896,95.69,95.607,2.46540581]
[1644619946696,15.6896,95.69,95.607,7.69240581]
[1644619946896,15.6896,95.69,95.608,5.04861248]
[1644619947097,15.6896,95.69,95.603,5.04861248]
[1644619947299,21.05719704,95.709,95.61,15.6902]
[1644619947504,21.05719704,95.709,95.611,5.04861248]
[1644619947697,21.05719704,95.708,95.611,5.04861248]
[1644619948199,21.05719704,95.707,95.611,5.04861248]
[1644619948602,21.05719704,95.706,95.61,0.024]
[1644619949003,21.05719704,95.705,95.61,0.024]
[1644619949498,21.05719704,95.704,95.61,0.024]
[1644619949698,15.6905,95.7,95.61,0.024]
[1644619950098,26.28419704,95.699,95.61,0.024]
[1644619950299,21.05719704,95.699,95.61,0.024]
[1644619950501,26.28419704,95.698,95.61,0.024]
[1644619950698,21.05719704,95.698,95.61,0.024]
[1644619950999,26.28419704,95.697,95.61,0.024]
[1644619951302,15.693,95.69,95.61,0.024]
[1644619951700,26.28419704,95.689,95.595,5.04861248]
[1644619951897,21.05719704,95.689,95.6,0.024]
[1644619952102,151.012749,95.66,95.58,0.024]
[1644619952302,145.93439913,95.66,95.573,5.04861248]
[1644619952504,7.61266791,95.659,95.573,5.04861248]
[1644619952902,2.38366791,95.658,95.573,5.04861248]
[1644619954710,2.38366791,95.658,95.58,15.6954]
[1644619954909,130.23729913,95.66,95.581,5.229]
[1644619955108,130.23729913,95.66,95.581,10.27761248]
[1644619955307,130.23729913,95.66,95.582,5.04861248]
[1644619955508,130.23729913,95.66,95.583,5.04861248]
[1644619955908,130.23729913,95.66,95.584,5.04861248]
[1644619956310,130.23729913,95.66,95.585,10.27661248]
[1644619956509,130.23729913,95.66,95.586,5.04861248]
[1644619956713,130.23729913,95.66,95.59,15.6938]
[1644619956914,130.23729913,95.66,95.591,5.04861248]
[1644619957110,130.23729913,95.66,95.592,5.04861248]
[1644619957409,130.23729913,95.66,95.593,5.04861248]
[1644619957609,130.23729913,95.66,95.594,5.04861248]
[1644619957809,130.23729913,95.66,95.595,5.04861248]
[1644619958310,130.23729913,95.66,95.596,5.04861248]
[1644619958511,130.23729913,95.66,95.597,5.04861248]
[1644619958733,130.23729913,95.66,95.598,5.04861248]
[1644619958935,130.23729913,95.66,95.599,5.04861248]
[1644619959134,130.23729913,95.66,95.6,5.04861248]
[1644619959334,130.23729913,95.66,95.601,5.04861248]
[1644619959735,130.23729913,95.66,95.602,5.04861248]
[1644619960134,130.23729913,95.66,95.603,5.04861248]
[1644619960334,130.23729913,95.66,95.604,5.04861248]
[1644619960537,130.23729913,95.66,95.605,5.04861248]
[1644619960740,130.23729913,95.66,95.606,5.04861248]
[1644619960945,132.62096704,95.66,95.607,5.04861248]
[1644619961141,23.90252913,95.659,95.608,5.04861248]
[1644619961343,23.90252913,95.659,95.579,4.42119406]
[1644619961344,23.90252913,95.659,95.609,5.04861248]
[1644619961542,21.05719704,95.658,95.58,0.024]
[1644619961740,21.05719704,95.658,95.579,4.42119406]
[1644619961939,21.05719704,95.657,95.584,4.42119406]
[1644619962142,26.28619704,95.657,95.584,4.42119406]
[1644619962341,21.05719704,95.656,95.584,4.42119406]
[1644619962640,5.229,95.655,95.584,4.42119406]
[1644619962839,21.05719704,95.655,95.584,4.42119406]
[1644619963039,26.28619704,95.654,95.584,4.42119406]
[1644619963239,21.05719704,95.654,95.581,4.42119406]
[1644619963439,7.61266791,95.653,95.581,4.42119406]
[1644619963841,2.38366791,95.652,95.581,4.42119406]
[1644619964040,5.229,95.651,95.581,4.42119406]
[1644619964542,5.229,95.651,95.572,12.48758967]
[1644619964543,2.38366791,95.65,95.593,4.42119406]
[1644619964743,16.58206791,95.65,95.593,4.42119406]
[1644619964941,5.228,95.649,95.593,4.42119406]
[1644619965643,5.228,95.649,95.594,4.7946692]
[1644619965840,18.08206791,95.65,95.591,4.42119406]
[1644619966642,18.08206791,95.65,95.596,4.42119406]
[1644619966843,5.229,95.649,95.596,4.42119406]
[1644619967143,15.6993,95.64,95.596,4.42119406]
[1644619967543,5.229,95.639,95.596,4.42119406]
[1644619967744,5.229,95.639,95.591,4.42119406]
[1644619967944,15.6993,95.64,95.591,4.42119406]
[1644619968146,130.23729913,95.66,95.591,4.42119406]
[1644619968743,130.23729913,95.66,95.611,4.42119406]
[1644619969849,130.23729913,95.66,95.607,4.42119406]
[1644619970448,130.23729913,95.66,95.61,15.6917]
[1644619970646,130.23729913,95.66,95.607,4.42119406]
[1644619970849,2.38366791,95.659,95.607,4.42119406]
[1644619971049,130.23729913,95.66,95.607,4.42119406]
[1644619971346,130.23729913,95.66,95.616,4.42119406]
[1644619972449,109.46297196,95.66,95.617,4.7946692]
[1644619972646,109.46297196,95.66,95.613,4.42119406]
[1644619973347,109.46297196,95.66,95.604,4.7946692]
[1644619973549,109.46297196,95.66,95.605,4.7946692]
[1644619973747,109.46297196,95.66,95.606,4.7946692]
[1644619973953,109.46297196,95.66,95.607,4.7946692]
[1644619974147,109.46297196,95.66,95.61,15.6916]
[1644619974348,109.46297196,95.66,95.611,4.7946692]
[1644619974549,109.46297196,95.66,95.612,4.7946692]
[1644619974748,109.46297196,95.66,95.613,4.7946692]
[1644619975050,109.46297196,95.66,95.614,4.7946692]
[1644619975251,2.38366791,95.659,95.615,4.7946692]
[1644619975450,2.38366791,95.659,95.616,4.7946692]
[1644619975649,2.38366791,95.659,95.617,4.7946692]
[1644619975852,2.38366791,95.659,95.618,4.7946692]
[1644619976051,2.38366791,95.659,95.619,4.7946692]
[1644619976252,2.38366791,95.659,95.62,4.7946692]
[1644619976454,109.46297196,95.66,95.62,4.7946692]
[1644619976652,109.46297196,95.66,95.606,4.42119406]
[1644619976653,109.46297196,95.66,95.621,4.7946692]
[1644619977055,2.38366791,95.659,95.622,4.7946692]
[1644619977252,2.38366791,95.659,95.607,4.42119406]
[1644619977253,2.38366791,95.659,95.623,4.7946692]
[1644619977454,2.38366791,95.659,95.624,4.7946692]
[1644619977658,109.46297196,95.66,95.625,4.7946692]
[1644619977856,109.46297196,95.66,95.626,4.7946692]
[1644619978055,109.46297196,95.66,95.627,4.7946692]
[1644619978254,109.46297196,95.66,95.61,4.42119406]
[1644619978255,109.46297196,95.66,95.628,4.7946692]
[1644619978657,109.46297196,95.66,95.629,4.7946692]
[1644619979058,109.46297196,95.66,95.63,4.7946692]
[1644619979258,109.46297196,95.66,95.631,4.7946692]
[1644619979458,109.46297196,95.66,95.632,4.7946692]
[1644619979657,109.46297196,95.66,95.612,4.42119406]
[1644619979658,109.46297196,95.66,95.633,4.7946692]
[1644619979859,109.46297196,95.66,95.634,4.7946692]
[1644619980059,109.46297196,95.66,95.635,4.7946692]
[1644619980458,109.46297196,95.66,95.636,4.7946692]
[1644619980860,109.46297196,95.66,95.637,4.7946692]
[1644619981060,109.46297196,95.66,95.638,4.7946692]
[1644619981364,109.46297196,95.66,95.639,4.7946692]
[1644619981759,109.46297196,95.66,95.64,4.7946692]
[1644619981961,109.46297196,95.66,95.641,4.7946692]
[1644619982164,109.46297196,95.66,95.62,15.6906]
[1644619982360,109.46297196,95.66,95.621,4.44648793]
[1644619983162,2.38366791,95.659,95.621,4.44648793]
[1644619983364,2.38366791,95.659,95.611,4.44648793]
[1644619983561,2.38366791,95.659,95.603,4.44648793]
[1644619986165,109.46297196,95.66,95.603,4.44648793]
[1644619986866,2.38366791,95.659,95.603,4.44648793]
[1644619987067,5.228,95.658,95.603,4.44648793]
[1644619987465,5.228,95.659,95.603,4.44648793]
[1644619988065,125.15707196,95.66,95.601,4.44648793]
[1644619989467,5.228,95.659,95.601,4.44648793]
[1644619990068,5.228,95.659,95.61,15.6922]
[1644619990267,109.46297196,95.66,95.595,2.38366791]
[1644619990268,109.46297196,95.66,95.611,4.44648793]
[1644619990473,109.46297196,95.66,95.596,4.44648793]
[1644619990668,109.46297196,95.66,95.595,4.42119406]
[1644619991871,109.46297196,95.66,95.62,15.6892]
[1644619992171,109.46297196,95.66,95.621,4.44648793]
[1644619993269,109.46297196,95.66,95.63,15.689]
[1644619993670,109.46297196,95.66,95.631,4.44648793]
[1644619998078,109.46297196,95.66,95.64,15.6876]
[1644619998276,109.46297196,95.66,95.641,4.44648793]
[1644619998676,109.46297196,95.66,95.631,4.44648793]
[1644619999076,109.46297196,95.66,95.64,15.6858]
[1644619999275,109.46297196,95.66,95.641,4.44648793]
[1644620000798,109.46297196,95.66,95.64,15.6858]
[1644620004404,150.0,95.65,95.64,15.6858]
[1644620005206,150.0,95.65,95.641,4.44723074]
[1644620006707,150.0,95.65,95.64,18.91006071]
[1644620006907,150.0,95.65,95.64,15.6858]
[1644620007108,150.0,95.65,95.64,18.71799997]
[1644620008009,150.0,95.65,95.64,15.6858]
[1644620008909,150.0,95.65,95.64,18.91006071]
[1644620009109,150.0,95.65,95.64,0.19206074]
[1644620009310,150.0,95.65,95.63,15.6893]
[1644620009709,150.0,95.65,95.61,52.2944]
[1644620009909,150.0,95.65,95.611,4.44785233]
[1644620010109,150.0,95.65,95.62,15.6905]
[1644620010510,150.0,95.65,95.621,4.44785233]
[1644620010914,150.0,95.65,95.611,4.44785233]
[1644620011719,150.0,95.65,95.63,15.6891]
[1644620011913,150.0,95.65,95.631,4.44785233]
[1644620012513,150.0,95.65,95.621,4.44785233]
[1644620012713,150.0,95.65,95.632,4.44785233]
[1644620012915,150.0,95.65,95.622,4.44785233]
[1644620013115,150.0,95.65,95.621,4.44785233]
[1644620013312,150.0,95.65,95.623,4.44785233]
[1644620013516,150.0,95.65,95.621,4.44785233]
[1644620013715,150.0,95.65,95.64,15.6878]
[1644620013914,150.0,95.65,95.64,18.91206071]
[1644620014113,150.0,95.65,95.64,15.6878]
[1644620014714,150.0,95.65,95.64,15.1878]
[1644620021222,150.0,95.65,95.64,18.21999997]
[1644620021428,150.0,95.65,95.64,15.1878]
[1644620022022,150.0,95.65,95.641,4.45031038]
[1644620023225,60.46211649,95.65,95.641,4.45031038]
[1644620024326,60.46211649,95.65,95.64,18.39785207]
[1644620024526,60.46211649,95.65,95.641,4.15398774]
[1644620030038,60.46211649,95.65,95.642,5.60346679]
[1644620030440,60.46211649,95.65,95.643,4.15680651]
[1644620030642,60.46211649,95.65,95.642,5.60346679]
[1644620033646,60.46211649,95.65,95.641,5.60346679]
[1644620034064,60.46211649,95.65,95.642,4.15667196]
[1644620034866,60.46211649,95.65,95.641,5.60346679]
[1644620035365,60.46211649,95.65,95.642,4.15665138]
[1644620037268,60.46211649,95.65,95.643,5.60346679]
[1644620040273,60.46211649,95.65,95.641,5.60346679]
[1644620040475,60.46211649,95.65,95.642,4.15704772]
[1644620041174,60.46211649,95.65,95.641,5.60346679]
[1644620042675,60.46211649,95.65,95.613,2.96310894]
[1644620042874,60.46211649,95.65,95.611,2.96310894]
[1644620043075,60.46211649,95.65,95.612,2.96310894]
[1644620043477,60.46211649,95.65,95.61,2.96310894]
[1644620043676,60.46211649,95.65,95.61,18.65460894]
[1644620044084,60.46211649,95.65,95.61,2.96310894]
[1644620044280,60.46211649,95.65,95.6,2.96310894]
[1644620044478,5.228,95.649,95.6,2.96310894]
[1644620044676,5.228,95.649,95.601,2.96310894]
[1644620044879,5.228,95.649,95.597,2.96310894]
[1644620045175,5.228,95.649,95.602,2.08380292]
[1644620046782,15.6947,95.64,95.602,2.08380292]
[1644620046979,5.228,95.639,95.602,2.08380292]
[1644620048382,5.228,95.639,95.591,2.08380292]
[1644620048582,15.6947,95.64,95.591,2.08380292]
[1644620048779,15.6947,95.64,95.602,1.47889331]
[1644620049183,5.228,95.639,95.602,1.47889331]
[1644620049385,15.6947,95.64,95.602,1.47889331]
[1644620049986,15.6947,95.64,95.606,1.47889331]
[1644620050186,15.6947,95.64,95.591,2.08380292]
[1644620050187,15.6947,95.64,95.601,1.47889331]
[1644620050389,15.6947,95.64,95.597,1.47889331]
[1644620050590,5.229,95.639,95.597,1.47889331]
[1644620050987,5.229,95.639,95.598,1.47889331]
[1644620051390,15.6971,95.63,95.598,1.47889331]
[1644620051588,15.6971,95.63,95.591,1.47889331]
[1644620052189,5.229,95.629,95.591,1.47889331]
[1644620052390,5.229,95.629,95.588,1.47889331]
[1644620052690,15.6971,95.63,95.588,1.47889331]
[1644620052890,15.6989,95.62,95.581,2.08380292]
[1644620053091,5.23,95.619,95.581,2.08380292]
[1644620053295,15.6989,95.62,95.581,2.08380292]
[1644620054291,15.6977,95.63,95.581,2.08380292]
[1644620054693,5.229,95.629,95.581,2.08380292]
[1644620054999,15.6977,95.63,95.576,1.47889331]
[1644620055193,15.6977,95.63,95.57,0.024]
[1644620055194,15.6977,95.63,95.572,1.47889331]
[1644620055593,15.6977,95.63,95.571,1.47889331]
[1644620055995,15.6977,95.63,95.574,1.47889331]
[1644620056396,15.696,95.64,95.575,5.23]
[1644620056595,5.229,95.638,95.574,1.47889331]
[1644620056798,15.696,95.64,95.576,1.47889331]
[1644620057004,5.229,95.637,95.576,1.47889331]
[1644620057198,60.46211649,95.65,95.578,1.47889331]
[1644620057397,60.46211649,95.65,95.582,1.47889331]
[1644620057599,60.46211649,95.65,95.594,1.47889331]
[1644620057799,60.46211649,95.65,95.595,6.70689331]
[1644620058001,60.46211649,95.65,95.595,1.47889331]
[1644620058400,60.46211649,95.65,95.598,1.47889331]
[1644620058601,60.46211649,95.65,95.6,1.47889331]
[1644620059004,60.46211649,95.65,95.602,1.47889331]
[1644620059203,60.46211649,95.65,95.603,5.228]
[1644620059504,60.46211649,95.65,95.61,15.6898]
[1644620060526,60.46211649,95.65,95.62,15.6896]
[1644620061727,60.46211649,95.65,95.61,15.6911]
[1644620061927,60.46211649,95.65,95.602,2.08380292]
[1644620063428,60.46211649,95.65,95.61,15.6914]
[1644620064129,60.46211649,95.65,95.611,2.08380292]
[1644620065634,2.38366791,95.649,95.611,2.08380292]
[1644620066031,60.46211649,95.65,95.611,2.08380292]
[1644620067136,5.228,95.649,95.611,2.08380292]
[1644620068337,60.46211649,95.65,95.611,2.08380292]
[1644620070240,60.46211649,95.65,95.614,1.47889331]
[1644620070440,60.46211649,95.65,95.615,1.47889331]
[1644620070641,60.46211649,95.65,95.615,3.56269623]
[1644620071039,60.46211649,95.65,95.62,15.6897]
[1644620072342,5.228,95.649,95.62,15.6897]
[1644620072543,5.228,95.649,95.615,2.08380292]
[1644620072739,60.46211649,95.65,95.615,2.08380292]
[1644620073347,60.46211649,95.65,95.615,3.56269623]
[1644620074944,60.46211649,95.65,95.615,2.08380292]
[1644620075745,15.6957,95.64,95.615,2.08380292]
[1644620075946,15.6957,95.64,95.613,2.08380292]
[1644620076146,7.61266791,95.639,95.613,2.08380292]
[1644620076345,2.38366791,95.639,95.613,2.08380292]
[1644620076545,7.61166791,95.638,95.613,2.08380292]
[1644620076747,2.38366791,95.638,95.613,2.08380292]
[1644620076950,2.38366791,95.637,95.613,2.08380292]
[1644620077750,15.6985,95.63,95.613,2.08380292]
[1644620078247,5.228,95.629,95.613,2.08380292]
[1644620078447,15.6985,95.63,95.613,2.08380292]
[1644620079148,15.6985,95.63,95.582,1.47889331]
[1644620079348,5.229,95.629,95.581,3.56269623]
[1644620079549,5.229,95.629,95.581,2.08380292]
[1644620083756,15.6987,95.62,95.581,2.08380292]
[1644620084556,15.6987,95.62,95.575,2.08380292]
[1644620087162,15.6987,95.62,95.575,1.58380292]
[1644620088463,5.23,95.619,95.575,1.58380292]
[1644620088964,5.23,95.619,95.572,1.58380292]
[1644620091468,15.6987,95.62,95.572,1.58380292]
[1644620091667,15.6987,95.62,95.568,1.47889331]
[1644620091866,15.6987,95.62,95.569,1.47889331]
[1644620092667,2.38366791,95.619,95.569,1.47889331]
[1644620092869,2.38366791,95.619,95.561,1.58380292]
[1644620092870,15.7014,95.61,95.566,1.47889331]
[1644620093171,15.7014,95.61,95.564,1.47889331]
[1644620094590,15.7014,95.61,95.565,1.47889331]
[1644620094791,15.7014,95.61,95.565,3.06269623]
[1644620095092,15.7014,95.61,95.565,1.58380292]
[1644620096692,5.23,95.618,95.565,1.58380292]
[1644620096891,5.23,95.609,95.565,1.58380292]
[1644620097093,2.38366791,95.617,95.565,1.58380292]
[1644620097293,7.61366791,95.608,95.565,1.58380292]
[1644620097492,2.38366791,95.608,95.565,1.58380292]
[1644620097694,7.61366791,95.607,95.565,1.58380292]
[1644620097993,15.7017,95.6,95.56,0.024]
[1644620098194,15.7017,95.6,95.557,1.58380292]
[1644620098397,7.61466791,95.599,95.557,1.58380292]
[1644620098595,2.38366791,95.599,95.557,1.58380292]
[1644620098794,2.38366791,95.598,95.557,1.58380292]
[1644620099894,15.707,95.59,95.557,1.58380292]
[1644620100294,7.61466791,95.589,95.557,1.58380292]
[1644620100796,2.38366791,95.588,95.557,1.58380292]
[1644620100997,2.731,95.587,95.557,1.58380292]
[1644620101395,2.38366791,95.586,95.557,1.58380292]
[1644620101595,2.38366791,95.586,95.551,1.58380292]
[1644620101796,15.7075,95.58,95.551,1.58380292]
[1644620102195,2.38366791,95.579,95.551,1.58380292]
[1644620102595,2.38366791,95.579,95.522,1.47889331]
[1644620102596,9.0,95.578,95.522,1.47889331]
[1644620102797,9.0,95.578,95.463,22.7084]
[1644620102798,23.5147,95.577,95.498,1.47889331]
[1644620102995,25.89836791,95.577,95.495,1.47889331]
[1644620103195,25.89836791,95.577,95.472,5.232]
[1644620103196,25.46736791,95.576,95.499,1.47889331]
[1644620103596,2.38366791,95.575,95.501,1.47889331]
[1644620103800,15.71,95.57,95.501,1.47889331]
[1644620103997,15.71,95.57,95.498,1.47889331]
[1644620104199,2.38366791,95.569,95.49,1.47889331]
[1644620104400,2.38366791,95.569,95.488,1.47889331]
[1644620104599,2.38366791,95.569,95.468,4.14318622]
[1644620104600,2.38366791,95.569,95.485,1.47889331]
[1644620104898,2.38366791,95.569,95.486,1.47889331]
[1644620105098,2.38366791,95.569,95.487,1.47889331]
[1644620105300,2.38366791,95.569,95.485,1.47889331]
[1644620105499,15.7177,95.55,95.484,1.47889331]
[1644620105698,15.7177,95.55,95.479,1.47889331]
[1644620105900,25.18956791,95.549,95.465,1.47889331]
[1644620106098,25.18956791,95.549,95.466,1.47889331]
[1644620106301,25.18956791,95.549,95.464,1.47889331]
[1644620106302,2.38366791,95.548,95.464,1.47889331]
[1644620106502,9.0,95.547,95.437,2.94200225]
[1644620106700,15.7191,95.53,95.437,2.94200225]
[1644620106999,23.2989,95.529,95.435,4.13202761]
[1644620107200,25.68256791,95.529,95.435,4.13202761]
[1644620107400,2.38366791,95.528,95.435,4.13202761]
[1644620108600,15.7188,95.51,95.436,5.236]
[1644620108999,2.38366791,95.509,95.436,5.236]
[1644620109201,2.38366791,95.509,95.421,5.237]
[1644620109400,2.38366791,95.509,95.422,4.1040465]
[1644620109601,2.38366791,95.509,95.423,5.237]
[1644620109805,2.38366791,95.509,95.424,4.1040465]
[1644620109806,15.7204,95.5,95.424,4.1040465]
[1644620110004,15.7204,95.5,95.422,5.237]
[1644620110202,2.38366791,95.499,95.422,5.237]
[1644620111306,15.7239,95.48,95.422,5.237]
[1644620111702,2.38366791,95.479,95.422,5.237]
[1644620112403,2.38366791,95.479,95.422,4.737]
[1644620112602,15.726,95.47,95.422,4.737]
[1644620113003,2.38366791,95.469,95.422,4.737]
[1644620113609,15.7264,95.46,95.422,4.737]
[1644620114004,15.7264,95.46,95.391,23.4634]
[1644620114405,15.7264,95.46,95.35,56.85109406]
[1644620114406,2.38366791,95.459,95.35,56.85109406]
[1644620114608,2.38366791,95.459,95.357,5.239]
[1644620114609,15.7319,95.44,95.357,5.239]
[1644620114805,15.7319,95.44,95.338,51.96959406]
[1644620114806,15.7319,95.44,95.351,4.0976081]
[1644620115007,23.4771,95.439,95.358,3.5976081]
[1644620115207,26.14026791,95.459,95.339,5.241]
[1644620115408,26.14026791,95.459,95.36,15.7312]
[1644620115607,15.729,95.45,95.361,5.24]
[1644620115807,15.729,95.45,95.351,5.24]
[1644620116007,15.729,95.45,95.352,24.3322]
[1644620116210,2.38366791,95.449,95.352,24.3322]
[1644620116410,2.38366791,95.449,95.352,26.71586791]
[1644620116609,15.7316,95.44,95.36,15.7312]
[1644620116809,22.8043,95.457,95.36,15.7312]
[1644620117010,2.38366791,95.456,95.36,15.7312]
[1644620117210,2.38366791,95.456,95.352,24.3322]
[1644620118010,15.7286,95.47,95.36,15.731]
[1644620118613,2.38366791,95.469,95.36,15.731]
[1644620118809,2.38366791,95.469,95.361,5.24]
[1644620119212,2.38366791,95.469,95.38,15.7277]
[1644620120513,15.7291,95.46,95.36,15.7305]
[1644620120712,47.4793,95.459,95.36,15.7305]
[1644620120912,49.86296791,95.459,95.36,15.7305]
[1644620121113,2.38366791,95.458,95.36,15.7305]
[1644620122212,15.7287,95.46,95.36,15.7305]
[1644620122420,48.0878,95.494,95.36,15.7305]
[1644620123816,15.7271,95.47,95.36,15.7305]
[1644620124011,15.7271,95.47,95.361,5.24]
[1644620124215,2.38366791,95.469,95.37,15.73]
[1644620124413,25.37476791,95.469,95.37,15.73]
[1644620124615,25.37476791,95.469,95.371,5.24]
[1644620124816,2.38366791,95.468,95.37,15.73]
[1644620125015,2.38366791,95.468,95.371,5.24]
[1644620125215,15.7313,95.45,95.371,5.24]
[1644620126016,23.8352,95.494,95.38,15.7285]
[1644620126215,23.8352,95.494,95.36,52.4236]
[1644620126216,15.7268,95.47,95.381,47.9462]
[1644620126617,15.7268,95.47,95.382,5.239]
[1644620126819,15.7268,95.47,95.381,47.9462]
[1644620127219,15.7268,95.47,95.39,15.7272]
[1644620127418,15.7268,95.47,95.391,5.239]
[1644620129425,2.38366791,95.469,95.361,5.239]
[1644620129619,15.7313,95.44,95.34,52.437]
[1644620129820,40.4390207,95.469,95.341,5.24]
[1644620130018,40.4390207,95.469,95.342,52.3919]
[1644620130019,24.6357,95.469,95.342,52.3919]
[1644620130218,2.38366791,95.468,95.342,52.3919]
[1644620130621,2.38366791,95.468,95.37,15.7306]
[1644620130822,23.6664,95.479,95.371,28.6425]
[1644620131019,15.7296,95.46,95.371,28.6425]
[1644620132138,15.7253,95.47,95.39,15.7271]
[1644620132438,15.7253,95.47,95.391,24.5647]
[1644620133040,2.38366791,95.469,95.391,24.5647]
[1644620133237,15.7284,95.45,95.391,24.5647]
[1644620133637,2.38366791,95.449,95.391,24.5647]
[1644620133838,52.4267,95.48,95.392,5.239]
[1644620134038,2.38366791,95.486,95.392,5.239]
[1644620134240,2.38366791,95.486,95.391,24.5647]
[1644620134241,15.7249,95.47,95.4,15.7259]
[1644620135049,15.7249,95.47,95.401,5.239]
[1644620135247,15.7249,95.47,95.4,15.7259]
[1644620135448,2.38366791,95.469,95.39,15.7278]
[1644620135647,15.7272,95.46,95.39,15.7278]
[1644620135852,2.38366791,95.479,95.391,5.239]
[1644620136048,2.38366791,95.479,95.392,24.8247]
[1644620136448,24.2856,95.489,95.393,5.239]
[1644620136853,15.7248,95.47,95.4,15.7247]
[1644620137054,15.7248,95.47,95.393,5.239]
[1644620137749,15.7271,95.46,95.393,5.239]
[1644620139152,15.7271,95.46,95.393,5.0352]
[1644620139553,15.7271,95.46,95.4,15.7261]
[1644620139952,54.81036791,95.48,95.4,15.7261]
[1644620139953,15.7245,95.47,95.4,15.7261]
[1644620140751,15.7245,95.47,95.41,15.7243]
[1644620141156,15.7245,95.47,95.411,5.238]
[1644620141751,15.7245,95.47,95.392,24.8247]
[1644620142155,15.7245,95.47,95.4,15.7262]
[1644620142352,15.7245,95.47,95.401,5.239]
[1644620142774,2.38366791,95.469,95.401,5.239]
[1644620142982,15.7275,95.46,95.392,24.8247]
[1644620144377,15.7277,95.45,95.392,24.8247]
[1644620144576,15.7277,95.45,95.39,15.7279]
[1644620144779,15.7277,95.45,95.381,24.3791]
[1644620144979,15.7277,95.45,95.391,5.239]
[1644620145180,15.7277,95.45,95.382,5.24]
[1644620145378,15.726,95.46,95.382,5.24]
[1644620145578,15.726,95.46,95.383,23.3295]
[1644620145781,15.726,95.46,95.384,5.239]
[1644620146181,15.726,95.46,95.39,15.7282]
[1644620146400,15.726,95.46,95.391,5.239]
[1644620146599,15.726,95.46,95.385,5.239]
[1644620146802,15.726,95.46,95.384,5.239]
[1644620147700,15.726,95.46,95.4,15.7263]
[1644620147901,2.38366791,95.459,95.4,15.7263]
[1644620148103,2.38366791,95.459,95.401,5.239]
[1644620148301,15.728,95.45,95.401,5.239]
[1644620148502,15.728,95.45,95.384,5.239]